bitfinex/quotes_ETHUSD_20260103
["timestamp","ask_amount","ask_price","bid_price","bid_amount"]
[1767436683156,3.22092311,3104.7,3104.1,2.18162369]
[1767436683983,5.55161892,3104.7,3104.1,2.18162369]
[1767436684185,2.33069581,3104.7,3104.1,2.18162369]
[1767436684586,2.33069581,3104.7,3104.1,5.40316592]
[1767436687889,5.55166908,3104.7,3104.1,2.18162369]
[1767436689589,2.33069581,3104.7,3104.1,5.40315955]
[1767436689970,5.55161918,3104.7,3104.1,2.18162369]
[1767436691322,2.33069581,3104.7,3104.1,5.40315721]
[1767436692163,2.33069581,3104.7,3104.0,3.22245004]
[1767436693698,2.33069581,3104.6,3104.0,3.22245004]
[1767436694792,2.33069581,3104.3,3103.6,0.00080056]
[1767436696174,2.33069581,3104.3,3103.6,3.22280426]
[1767436696680,2.33069581,3104.3,3103.8,0.001]
[1767436697681,2.33069581,3104.2,3103.8,0.001]
[1767436698801,2.33069581,3104.1,3103.8,0.001]
[1767436698989,2.79683497,3104.1,3103.6,0.00080056]
[1767436700396,2.33069581,3104.1,3103.6,0.00080056]
[1767436701696,2.33069581,3104.0,3103.6,0.00080056]
[1767436701897,2.33149637,3104.0,3103.3,0.001]
[1767436703582,2.33069581,3103.8,3103.3,0.001]
[1767436710920,2.2927207,3104.0,3103.3,2.18542425]
[1767436711082,2.2927207,3104.0,3103.4,3.132042]
[1767436711781,0.00080056,3104.0,3103.5,5.40659276]
[1767436712514,0.00080056,3104.0,3103.6,2.18442425]
[1767436712939,0.00080056,3104.0,3103.8,2.18442425]
[1767436713094,0.00080056,3104.0,3103.9,0.30294243]
[1767436713523,0.00080056,3104.0,3103.7,3.02942425]
[1767436713721,0.00080056,3104.4,3103.8,2.18442425]
[1767436713930,0.00080056,3104.4,3103.9,5.40617752]
[1767436715723,0.002,3104.1,3103.9,5.40617752]
[1767436716828,0.00080056,3104.4,3104.0,2.18442425]
[1767436716995,0.00080056,3104.4,3104.1,0.86279308]
[1767436719022,0.00080056,3104.4,3104.1,6.26868623]
[1767436719397,0.00080056,3104.4,3104.1,9.49023192]
[1767436719828,0.00080056,3104.4,3104.1,6.26868623]
[1767436720124,0.00080056,3104.4,3104.1,9.49023192]
[1767436720326,0.002,3104.6,3104.2,0.94902319]
[1767436722234,0.002,3104.6,3104.3,3.22133814]
[1767436724624,0.002,3104.6,3104.2,4.17042004]
[1767436727516,0.002,3104.6,3104.5,0.8]
[1767436733841,2.29392014,3104.8,3104.5,0.8]
[1767436734012,0.002,3104.8,3104.5,0.8]
[1767436741653,0.002,3104.8,3104.5,4.02110919]
[1767436742231,0.002,3105.3,3104.7,2.71800664]
[1767436743256,0.002,3105.3,3104.6,2.37583163]
[1767436744742,2.49252005,3105.3,3104.7,3.22092311]
[1767436745264,2.49052005,3105.2,3104.5,0.80080112]
[1767436746942,2.49052005,3105.0,3104.5,0.80080112]
[1767436747149,3.06162287,3105.0,3104.5,0.80080112]
[1767436749151,2.49052005,3104.9,3104.5,0.80080112]
[1767436755269,2.49052005,3104.8,3104.5,0.80080112]
[1767436756159,2.49052005,3104.8,3104.4,0.001]
[1767436756845,2.49052005,3104.6,3104.4,0.001]
[1767436758554,2.49252005,3104.6,3104.4,0.001]
[1767436760272,0.002,3104.6,3104.4,0.001]
[1767436763476,0.002,3104.6,3104.4,2.37683163]
[1767436763657,0.00280048,3105.4,3104.7,2.37583163]
[1767436765562,0.00280048,3105.4,3104.8,8.81747037]
[1767436766485,0.00280048,3105.4,3104.9,2.37583163]
[1767436767282,0.002,3105.2,3104.9,2.37583163]
[1767436769782,0.002,3105.2,3105.0,3.22061191]
[1767436769977,0.002,3105.2,3105.1,0.88170584]
[1767436772183,0.002,3105.2,3105.1,4.10221403]
[1767436772555,0.002,3105.2,3105.1,0.88170584]
[1767436772758,0.002,3105.2,3105.1,4.10221403]
[1767436773502,0.002,3105.2,3104.7,2.35240255]
[1767436773503,2.38091287,3105.2,3104.7,3.22085314]
[1767436773690,2.38091287,3105.2,3104.9,3.22070318]
[1767436774695,2.38091287,3105.2,3104.7,6.44177625]
[1767436776787,2.38091287,3105.2,3104.6,6.44205372]
[1767436777893,2.38091287,3105.2,3104.6,3.22102686]
[1767436778084,2.61928421,3105.2,3104.5,3.22188784]
[1767436778291,2.37891287,3105.1,3104.5,3.22188784]
[1767436778903,2.37891287,3105.1,3104.5,0.0008012]
[1767436787894,2.37891287,3105.1,3104.5,6.44406242]
[1767436797339,2.37891287,3105.1,3104.5,0.0018012]
[1767436798901,2.38091287,3105.2,3104.5,2.35420375]
[1767436799100,2.6194842,3105.2,3104.5,2.35420375]
[1767436799432,2.6194842,3105.2,3104.6,3.22102686]
[1767436806233,2.6194842,3105.2,3104.5,0.0018012]
[1767436812140,2.6194842,3105.2,3104.8,0.7]
[1767436819516,2.6194842,3105.2,3104.8,3.92081756]
[1767436820057,2.6194842,3105.2,3104.8,0.7]
[1767436828821,2.6194842,3105.2,3104.5,0.0018012]
[1767436828822,2.58186753,3105.1,3104.5,0.0018012]
[1767436830150,2.47667104,3104.9,3104.5,0.0018012]
[1767436832128,0.26214842,3105.1,3104.0,5.58852635]
[1767436832129,2.47667104,3104.7,3104.0,0.00080064]
[1767436832338,2.47667104,3104.5,3104.0,0.00080064]
[1767436834639,2.47667104,3104.3,3104.0,0.00080064]
[1767436835858,2.47667104,3104.3,3104.0,0.00180064]
[1767436836651,5.69811295,3104.2,3104.0,0.00180064]
[1767436836851,5.69811295,3104.2,3103.6,0.00080064]
[1767436836852,2.47667104,3104.1,3103.6,0.00080064]
[1767436837047,3.04648233,3104.1,3103.6,0.00080064]
[1767436838639,2.47667104,3104.0,3103.6,0.00080064]
[1767436840973,2.47667104,3103.9,3103.6,0.00080064]
[1767436844844,6.26805099,3104.1,3103.6,0.00080064]
[1767436846861,0.6268051,3104.0,3103.6,0.00080064]
[1767436847067,6.26805099,3104.1,3103.6,0.00080064]
[1767436849371,2.47667104,3104.0,3103.6,0.00080064]
[1767436851375,5.6983236,3104.0,3103.6,0.00080064]
[1767436851591,0.56981129,3104.1,3103.6,0.00080064]
[1767436851769,5.69819238,3104.2,3103.6,0.00080064]
[1767436853880,2.47667104,3104.1,3103.6,0.00080064]
[1767436855756,2.71886065,3104.0,3103.5,0.001]
[1767436855960,8.41807944,3104.0,3103.5,0.001]
[1767436856156,0.84180794,3103.9,3103.5,0.001]
[1767436856661,2.47667104,3103.8,3103.5,0.001]
[1767436859160,0.84180794,3103.9,3103.5,0.001]
[1767436860657,5.69921879,3104.0,3103.5,0.001]
[1767436860658,2.47747168,3104.0,3103.5,0.001]
[1767436862487,0.00080064,3104.0,3103.5,2.35008534]
[1767436864962,0.00080064,3104.0,3103.7,2.34908534]
[1767436866877,0.002,3104.3,3103.9,2.34908534]
[1767436867199,0.002,3104.3,3104.1,2.34908534]
[1767436867375,0.002,3104.3,3104.0,3.22164948]
[1767436872499,0.002,3104.3,3103.9,5.57079766]
[1767436872669,0.002,3104.3,3103.9,6.4500589]
[1767436878779,0.002,3104.3,3104.0,2.34908534]
[1767436883910,0.002,3104.3,3104.0,5.57070341]
[1767436888998,0.00080064,3104.4,3104.1,2.34908534]
[1767436891125,0.00080064,3104.4,3104.2,3.22144191]
[1767436891323,0.00080064,3104.4,3104.2,4.10065644]
[1767436892315,0.00280064,3104.4,3104.2,4.10065644]
[1767436897030,0.00280064,3104.4,3104.2,0.87921453]
[1767436897701,0.00280064,3104.4,3104.1,3.22146081]
[1767436898631,0.00280064,3104.4,3104.0,3.22264948]
[1767436900128,0.00280064,3104.4,3104.0,0.001]
[1767436900129,2.25715646,3104.4,3104.0,0.001]
[1767436901007,2.25715646,3104.4,3104.1,0.001]
[1767436906528,0.00280064,3104.4,3104.1,0.001]
[1767436911249,0.00280064,3104.4,3104.1,3.22254569]
[1767436914254,0.00280064,3104.4,3104.1,2.4519765]
[1767436915229,0.00280064,3104.4,3104.1,5.67346021]
[1767436916554,0.00280064,3104.4,3104.1,2.4519765]
[1767436916767,0.00280064,3104.4,3104.1,5.67350093]
[1767436920759,0.00280064,3104.4,3104.1,2.4519765]
[1767436921055,0.00280064,3104.4,3104.1,0.001]
[1767436922262,2.26887879,3104.4,3104.1,0.001]
[1767436922439,2.8178715,3104.4,3104.1,0.001]
[1767436925741,2.26887879,3104.4,3104.1,0.001]
[1767436932482,0.00280064,3104.4,3104.1,0.001]
[1767436938401,0.00280064,3104.4,3104.1,2.44818751]
[1767436940696,0.00280064,3104.4,3104.1,5.66972726]
[1767436950705,0.00280064,3104.4,3104.1,0.001]
[1767436955514,2.30916322,3104.4,3104.1,0.001]
[1767436957084,2.30636258,3104.3,3104.1,0.001]
[1767436963337,2.30636258,3104.2,3104.1,0.001]
[1767436965441,5.52780449,3104.2,3104.1,0.001]
[1767436966364,2.30636258,3104.1,3103.6,0.00180072]
[1767436966655,3.18127767,3104.1,3103.6,0.00180072]
[1767436968860,2.30636258,3104.0,3103.6,0.00180072]
[1767436970313,5.5280232,3104.0,3103.6,0.00180072]
[1767436971152,2.30636258,3104.0,3103.6,0.00180072]
[1767436972352,5.52802891,3104.0,3103.6,0.00180072]
[1767436972552,0.6402944,3103.9,3103.6,0.00180072]
[1767436972915,2.94665698,3103.9,3103.6,0.00180072]
[1767436980438,6.16842744,3103.9,3103.6,0.00180072]
[1767436981350,2.49637868,3103.8,3103.6,0.00180072]
[1767436983817,0.6402944,3103.9,3103.6,0.00180072]
[1767436985145,0.38639441,3103.8,3103.6,0.00180072]
[1767436987552,3.60825509,3103.8,3103.6,0.00180072]
[1767436989160,3.60745509,3103.8,3103.6,0.00180072]
[1767436989327,3.60745509,3103.8,3103.3,0.001]
[1767436989328,9.54788385,3103.8,3103.3,0.001]
[1767436989530,1.26845569,3103.7,3103.3,0.001]
[1767436990927,6.9868515,3103.7,3103.3,0.001]
[1767436993626,3.76483437,3103.7,3103.3,0.001]
[1767436994030,6.98682333,3103.7,3103.3,0.001]
[1767436996264,2.49637868,3103.6,3103.3,0.001]
[1767436996449,3.19506101,3103.5,3103.1,0.001]
[1767437001366,2.49637868,3103.5,3103.1,0.001]
[1767437002765,3.22288777,3103.6,3103.1,0.001]
[1767437014376,3.22488777,3103.6,3103.1,0.001]
[1767437017497,0.0028008,3103.6,3103.1,2.39066061]
[1767437023986,0.0028008,3103.6,3103.1,5.61324144]
[1767437024171,0.0028008,3103.6,3103.2,2.38966061]
[1767437055103,0.0028008,3103.6,3103.1,0.001]
[1767437064431,0.0028008,3103.6,3103.1,2.29980356]
[1767437068137,0.0028008,3103.6,3103.1,5.5223645]
[1767437077044,0.0028008,3103.6,3103.1,2.29980356]
[1767437077237,2.4373137,3103.6,3103.1,0.001]
[1767437077435,2.4345129,3103.5,3103.1,0.001]
[1767437098443,2.4345129,3103.4,3103.1,0.001]
[1767437101556,2.35063452,3103.3,3103.1,0.001]
[1767437102274,3.22228593,3103.4,3102.7,0.001]
[1767437102275,2.72013966,3103.2,3102.7,0.001]
[1767437102447,2.62264849,3103.1,3102.6,0.001]
[1767437103558,2.35063452,3102.9,3102.6,0.001]
[1767437105970,2.35063452,3102.8,3102.6,0.001]
[1767437107971,2.35063452,3102.7,3102.5,0.001]
[1767437112777,3.22269138,3103.0,3102.5,0.001]
[1767437112778,2.35063452,3103.0,3102.5,0.001]
[1767437112974,0.26226485,3102.9,3102.5,0.001]
[1767437113879,5.83570607,3102.9,3102.5,0.001]
[1767437114262,2.35063452,3102.8,3102.5,0.001]
[1767437115964,2.35063452,3102.6,3102.3,0.00180112]
[1767437116288,0.55736338,3102.5,3102.3,0.00180112]
[1767437116591,2.35063452,3102.6,3102.3,0.00180112]
[1767437117094,2.35063452,3102.6,3102.5,0.001]
[1767437119089,2.35063452,3102.6,3102.0,0.12996881]
[1767437119287,2.35063452,3102.5,3102.0,0.001]
[1767437120071,2.35063452,3102.5,3101.9,0.001]
[1767437120573,5.5739455,3102.4,3101.9,0.001]
[1767437124264,3.22331098,3102.4,3101.9,2.42499902]
[1767437124498,3.2232344,3102.5,3101.9,2.42499902]
[1767437125384,0.00080112,3102.7,3101.9,2.42499902]
[1767437125385,0.00080112,3102.7,3101.9,2.66767908]
[1767437126775,0.00080112,3102.7,3102.1,2.42399902]
[1767437128982,0.00080112,3102.7,3102.1,5.6475322]
[1767437129474,0.00080112,3102.7,3102.2,2.43516553]
[1767437129799,0.00080112,3102.7,3102.3,2.33407741]
[1767437133004,0.00280112,3102.7,3102.3,5.55748283]
[1767437139878,0.00280112,3102.7,3102.4,2.33407741]
[1767437140079,0.84680064,3103.2,3102.7,2.33407741]
[1767437141004,0.84680064,3103.2,3102.3,6.4476215]
[1767437141005,0.84680064,3103.2,3102.4,2.33407741]
[1767437141178,0.84680064,3103.2,3102.5,3.2122473]
[1767437142503,0.84680064,3103.2,3102.6,3.2231032]
[1767437144104,0.00080064,3103.2,3102.7,2.33407741]
[1767437145813,0.00080064,3103.2,3102.7,5.55705155]
[1767437147114,0.00280064,3103.2,3102.7,5.55705155]
[1767437148410,0.00280064,3103.2,3102.7,2.33407741]
[1767437149415,0.00280064,3103.2,3102.4,3.22328254]
[1767437149416,2.47374128,3103.2,3102.4,3.22324993]
[1767437150189,2.47374128,3103.2,3102.4,3.95682887]
[1767437153834,2.47094064,3103.0,3102.3,0.0008012]
[1767437154000,2.47094064,3103.0,3102.3,3.22419346]
[1767437156934,2.47094064,3102.9,3102.3,0.0008012]
[1767437162111,0.0008012,3102.7,3102.0,0.001]
[1767437162321,2.2944852,3102.6,3102.0,0.001]
[1767437163330,2.2944852,3102.6,3102.3,0.001]
[1767437163535,2.2944852,3102.4,3102.3,0.001]
[1767437163717,2.2944852,3102.4,3102.0,0.001]
[1767437165735,3.22341488,3102.3,3102.0,0.001]
[1767437165939,4.0975256,3102.3,3102.0,0.001]
[1767437166437,6.3920108,3102.3,3102.0,0.001]
[1767437167818,4.0975256,3102.3,3102.0,0.001]
[1767437168537,0.87411072,3102.3,3102.0,0.001]
[1767437169123,4.0975635,3102.3,3102.0,0.001]
[1767437172545,0.63920487,3102.2,3102.0,0.001]
[1767437173640,3.86275172,3102.2,3102.0,0.001]
[1767437175022,0.63920487,3102.2,3102.0,0.001]
[1767437175242,2.93369007,3102.2,3102.0,0.001]
[1767437176344,2.2944852,3102.2,3102.0,0.001]
[1767437176745,0.87611072,3102.3,3102.0,0.001]
[1767437179658,6.39404874,3102.3,3102.0,0.001]
[1767437180728,3.17059592,3102.3,3102.0,0.001]
[1767437182556,6.39401423,3102.3,3102.0,0.001]
[1767437183655,3.17059592,3102.3,3102.0,0.001]
[1767437184445,2.2964852,3102.3,3102.0,0.001]
[1767437184648,0.002,3102.3,3102.0,0.001]
[1767437185932,0.002,3102.3,3102.0,2.33828039]
[1767437194562,0.002,3102.3,3102.0,0.001]
[1767437202166,2.28310418,3102.3,3102.0,0.001]
[1767437202366,0.22831042,3102.2,3102.0,0.001]
[1767437202565,2.5094146,3102.2,3101.9,0.001]
[1767437203249,5.73294923,3102.2,3101.9,0.001]
[1767437203477,5.73294923,3102.2,3102.0,0.001]
[1767437203674,3.45184505,3102.2,3102.0,0.001]
[1767437205577,0.34538451,3102.1,3101.8,0.0018016]
[1767437205775,0.34538451,3102.1,3101.6,2.27068334]
[1767437205776,0.34538451,3102.1,3101.6,0.001]
[1767437205982,2.62648869,3102.1,3101.6,0.001]
[1767437206665,3.22372662,3102.0,3101.6,0.001]
[1767437206873,0.90738486,3101.9,3101.6,0.001]
[1767437208082,0.90738486,3101.9,3101.4,2.26968334]
[1767437208256,5.5048308,3102.0,3101.4,5.49402969]
[1767437208459,5.5048308,3102.0,3101.4,2.26968334]
[1767437210682,5.5048308,3102.0,3101.4,2.27068334]
[1767437210884,5.5048308,3102.0,3101.4,0.001]
[1767437214084,8.72855742,3102.0,3101.4,0.001]
[1767437214281,0.90739419,3101.9,3101.4,0.001]
[1767437214664,3.18849837,3101.9,3101.4,0.001]
[1767437215679,2.28110418,3101.8,3101.3,0.001802]
[1767437216689,5.50514261,3101.7,3101.3,0.001802]
[1767437216894,3.15402199,3101.6,3101.3,0.001802]
[1767437218986,3.22424633,3101.5,3101.3,0.001802]
[1767437220303,5.61293206,3101.5,3101.3,0.001802]
[1767437220483,2.38868573,3101.5,3101.3,0.001802]
[1767437220792,0.87291781,3101.6,3101.3,0.001802]
[1767437222090,4.09707221,3101.6,3101.3,0.001802]
[1767437223192,0.64857579,3101.5,3101.0,0.001]
[1767437224384,4.09707221,3101.6,3101.0,0.001]
[1767437224585,6.48575794,3101.6,3101.0,0.001]
[1767437224986,2.38868573,3101.5,3101.3,0.001]
[1767437226502,5.61294058,3101.5,3101.3,0.001]
[1767437226882,8.83719543,3101.5,3101.0,0.001]
[1767437227074,0.64858584,3101.4,3101.0,0.001]
[1767437227274,3.8729581,3101.4,3101.0,0.001]
[1767437227792,6.26164383,3101.4,3101.0,0.001]
[1767437228474,2.38868573,3101.3,3101.0,0.001]
[1767437229206,3.01485011,3101.3,3101.0,0.001]
[1767437233617,6.23932929,3101.3,3101.0,0.001]
[1767437233819,3.01485011,3101.3,3101.0,0.001]
[1767437234115,2.38868573,3101.2,3101.0,0.001]
[1767437234892,0.62616438,3101.3,3101.0,0.001]
[1767437235095,3.03727157,3101.4,3101.0,0.001]
[1767437235616,2.38868573,3101.3,3101.0,0.001]
[1767437235779,2.38868573,3101.2,3100.8,0.0018016]
[1767437241792,5.6132661,3101.2,3100.8,0.0018016]
[1767437241999,2.38868573,3101.2,3100.8,0.0018016]
[1767437243216,5.61326306,3101.2,3100.8,0.0018016]
[1767437243416,2.38868573,3101.2,3100.8,0.0018016]
[1767437244318,5.61326172,3101.2,3100.8,0.0018016]
[1767437248013,3.22457599,3101.2,3100.8,0.0018016]
[1767437249312,6.26364057,3101.4,3100.8,0.0018016]
[1767437249313,3.22449447,3101.3,3100.8,0.0018016]
[1767437250413,4.17329813,3101.3,3100.8,0.0018016]
[1767437251318,4.17329813,3101.3,3100.8,2.42045604]
[1767437251639,3.03927157,3101.4,3100.8,2.42045604]
[1767437251640,0.002,3101.4,3100.8,2.42045604]
[1767437252311,3.22636892,3101.4,3100.8,2.42045604]
[1767437253329,0.002,3101.4,3100.8,2.42045604]
[1767437254730,0.002,3101.4,3100.7,0.68654558]
[1767437254731,2.48208796,3101.4,3100.7,0.68654558]
[1767437254934,1.71155521,3100.5,3099.7,2.41965444]
[1767437255136,0.846,3100.5,3099.7,2.41865444]
[1767437255302,3.22539027,3100.4,3099.7,2.41865444]
[1767437255502,6.45078054,3100.4,3099.7,2.41865444]
[1767437255701,2.48008796,3100.3,3099.7,2.41865444]
[1767437257335,2.48008796,3100.3,3099.5,2.42045476]
[1767437257639,8.93128464,3100.2,3099.5,2.42045476]
[1767437259301,3.22559834,3100.2,3099.5,2.42045476]
[1767437259505,3.22547729,3100.4,3099.5,2.42045476]
[1767437259706,3.22547729,3100.4,3099.7,2.41865444]
[1767437261525,6.45095458,3100.4,3099.7,2.41865444]
[1767437262174,3.22547729,3100.4,3099.7,2.41865444]
[1767437262836,3.22547729,3100.4,3099.7,5.64477041]
[1767437263033,3.22547729,3100.4,3099.7,2.41865444]
[1767437263633,3.22518222,3100.6,3099.7,2.41865444]
[1767437263861,3.88038938,3100.6,3099.7,2.41865444]
[1767437264234,7.1055716,3100.6,3099.7,2.41865444]
[1767437266449,7.1055716,3100.6,3099.8,2.41865444]
[1767437272160,7.1065716,3100.6,3099.8,2.41865444]
[1767437273338,9.58665956,3100.6,3099.8,2.41865444]
[1767437274364,1.04326596,3100.5,3099.8,2.41865444]
[1767437276466,3.22539027,3100.4,3099.8,2.41865444]
[1767437277462,0.001,3100.6,3099.9,2.41865444]
[1767437279170,0.001,3100.6,3100.0,2.41865444]
[1767437280949,0.001,3100.6,3100.0,2.98310769]
[1767437281361,0.001,3100.6,3100.1,2.4195502]
[1767437281946,2.25175147,3100.6,3099.7,3.2260471]
[1767437282164,2.25175147,3100.6,3099.8,2.4195502]
[1767437282862,2.25175147,3100.6,3099.8,5.64556429]
[1767437283875,3.22528624,3100.5,3099.8,5.64556429]
[1767437285152,8.70132395,3100.5,3099.8,2.4195502]
[1767437285351,9.57155635,3100.5,3099.8,2.4195502]
[1767437285566,6.34627011,3100.5,3099.8,2.4195502]
[1767437287556,9.57155635,3100.5,3099.8,2.4195502]
[1767437288571,2.25075147,3100.4,3099.8,2.4195502]
[1767437288773,3.2254943,3100.3,3099.8,2.4195502]
[1767437295789,3.22539027,3100.4,3099.8,2.4195502]
[1767437296287,6.45078054,3100.4,3099.8,2.4195502]
[1767437296495,7.49265698,3100.4,3099.8,2.4195502]
[1767437296988,9.74340845,3100.4,3099.8,2.4195502]
[1767437301594,9.74340845,3100.4,3099.6,2.4215502]
[1767437302121,2.25075147,3100.3,3099.6,2.4215502]
[1767437304373,8.70194815,3100.2,3099.6,2.4215502]
[1767437304577,2.25075147,3100.1,3099.6,0.002]
[1767437307212,3.22580645,3100.0,3099.6,0.002]
[1767437307711,5.47649503,3100.1,3099.6,0.002]
[1767437310281,4.1999808,3100.2,3099.6,0.002]
[1767437310282,4.20002424,3100.2,3099.6,0.002]
[1767437310512,3.22564178,3100.2,3099.6,0.002]
[1767437311108,5.49395038,3100.2,3099.6,0.002]
[1767437312804,8.71962273,3100.2,3099.6,0.002]
[1767437321989,5.49395038,3100.2,3099.6,0.002]
[1767437326321,5.49495038,3100.2,3099.6,0.002]
[1767437326623,6.36709812,3100.2,3099.6,0.002]
[1767437329705,9.59277047,3100.2,3099.6,0.002]
[1767437332928,6.36709812,3100.2,3099.6,0.002]
[1767437334395,9.59277047,3100.2,3099.6,0.002]
[1767437335227,6.36709812,3100.2,3099.6,0.002]
[1767437336431,0.95936088,3100.1,3099.6,0.002]
[1767437339331,4.185167,3100.1,3099.6,0.002]
[1767437339731,6.549624,3100.1,3099.6,0.002]
[1767437342237,4.185167,3100.1,3099.6,0.002]
[1767437342735,4.185167,3100.1,3099.6,2.2888448]
[1767437343616,0.87314774,3100.2,3099.6,2.2888448]
[1767437343617,0.001,3100.2,3099.6,2.2888448]
[1767437346141,0.001,3100.2,3099.7,2.2868448]
[1767437351451,0.001,3100.2,3099.8,2.2868448]
[1767437361554,0.001,3100.2,3099.9,2.2868448]
[1767437361743,0.001,3100.2,3100.1,2.2868448]
[1767437371260,0.001,3100.5,3100.3,2.44480845]
[1767437371471,0.001,3100.6,3100.4,2.44480845]
[1767437377641,0.001,3100.6,3100.2,3.22556007]
[1767437377843,0.001,3100.6,3100.2,5.67036852]
[1767437378177,0.001,3100.6,3100.3,0.56703685]
[1767437378482,0.001,3100.6,3100.2,2.44480845]
[1767437382564,0.001,3100.6,3100.2,5.67039863]
[1767437388279,0.001,3100.6,3100.3,2.44480845]
[1767437388959,0.001,3100.6,3100.4,5.67019872]
[1767437389973,0.001,3100.6,3100.5,2.44480845]
[1767437390178,0.001,3100.6,3100.5,3.33436735]
[1767437393175,0.001,3100.6,3100.5,6.55965359]
[1767437398498,0.00080144,3100.8,3100.6,2.44480845]
[1767437400675,0.00080144,3100.8,3100.7,5.50579491]
[1767437402883,0.0018016,3101.2,3100.8,2.28071671]
[1767437403083,0.0018016,3101.2,3100.9,2.8312962]
[1767437405075,0.0018016,3101.2,3101.0,3.2247662]
[1767437405266,0.002,3101.4,3101.1,2.28071671]
[1767437405462,2.42180493,3101.4,3100.9,0.55057949]
[1767437405662,2.42180493,3101.4,3100.8,0.00080168]
[1767437406397,2.42180493,3101.4,3100.8,3.22577146]
[1767437407087,2.42180493,3101.4,3100.8,0.00080168]
[1767437411303,2.41980493,3101.3,3100.8,0.00080168]
[1767437414386,2.41980493,3101.3,3100.8,0.00180168]
[1767437418502,0.002,3101.4,3100.8,2.28251839]
[1767437420979,0.002,3101.4,3100.8,5.5074878]
[1767437421178,0.002,3101.4,3100.8,6.38075456]
[1767437422225,0.002,3101.4,3100.8,3.15578515]
[1767437422513,0.002,3101.4,3100.8,2.28251839]
[1767437425276,2.42180493,3101.4,3100.8,0.00180168]
[1767437427310,8.86871345,3101.3,3100.8,0.00180168]
[1767437432319,2.33575861,3101.2,3100.8,0.00180168]
[1767437435020,5.56038319,3101.2,3100.8,0.00180168]
[1767437438227,2.33775861,3101.4,3100.8,0.00180168]
[1767437441630,3.22445426,3101.3,3100.8,0.00180168]
[1767437446431,2.33575861,3101.2,3100.5,0.002]
[1767437446637,2.33656029,3101.2,3100.5,0.002]
[1767437447137,2.33575861,3101.0,3100.5,0.002]
[1767437449235,5.5605367,3101.0,3100.5,0.002]
[1767437450207,5.5605367,3101.0,3100.4,0.00280152]
[1767437450534,2.33575861,3100.9,3100.4,0.00280152]
[1767437453554,2.33575861,3100.9,3100.5,0.001]
[1767437453940,5.56064339,3100.9,3100.5,0.001]
[1767437459141,2.33575861,3100.8,3100.5,0.001]
[1767437461553,5.56074195,3100.8,3100.5,0.001]
[1767437461721,2.33575861,3100.8,3100.5,0.001]
[1767437467853,0.001,3100.9,3100.5,2.34600718]
[1767437468060,0.001,3100.9,3100.6,2.57988805]
[1767437468557,0.001,3100.9,3100.6,0.23488087]
[1767437468730,0.001,3100.9,3100.5,0.001]
[1767437471148,0.001,3100.8,3100.5,0.001]
[1767437471360,0.00280168,3101.2,3100.7,2.34500718]
[1767437471957,2.43180504,3101.2,3100.5,2.34600718]
[1767437473845,0.002,3101.4,3100.9,2.34500718]
[1767437474050,0.002,3101.4,3101.0,2.5795079]
[1767437476139,0.002,3101.4,3101.0,5.80423737]
[1767437477058,0.002,3101.4,3101.0,0.23450072]
[1767437477257,2.43100336,3101.4,3100.8,0.00080176]
[1767437477759,2.43100336,3101.4,3100.8,3.22577428]
[1767437478744,0.002,3101.4,3100.9,2.34500718]
[1767437481851,0.002,3101.4,3100.9,5.56982588]
[1767437482762,0.002,3101.4,3100.9,3.2248187]
[1767437482963,2.43100336,3101.4,3100.8,0.00080176]
[1767437483341,2.43100336,3101.4,3100.8,3.2256972]
[1767437483861,2.43100336,3101.4,3100.8,0.00080176]
[1767437485443,2.43100336,3101.4,3100.8,0.64590973]
[1767437485642,2.48100336,3101.4,3100.8,0.64590973]
[1767437485845,2.48100336,3101.4,3100.9,3.22487019]
[1767437488375,2.48100336,3101.4,3100.9,3.22587019]
[1767437488672,0.052,3101.4,3100.9,3.22587019]
[1767437488877,0.052,3101.4,3101.0,0.9441752]
[1767437493273,0.052,3101.4,3101.1,3.22466221]
[1767437495082,1e-08,3101.4,3101.1,3.22466221]
[1767437495972,1e-08,3101.4,3101.1,5.62027942]
[1767437496476,0.00200001,3101.4,3101.1,5.62027942]
[1767437499479,0.00200001,3101.4,3101.1,8.84494163]
[1767437499877,0.00200001,3101.4,3101.1,5.62027942]
[1767437500283,0.00200001,3101.4,3101.1,3.22466221]
[1767437502488,0.00200001,3101.4,3101.0,3.2247662]
[1767437504390,0.00200001,3101.4,3101.0,3.2257662]
[1767437509063,0.00200001,3101.4,3101.0,6.4505324]
[1767437511187,0.00200001,3101.4,3101.0,2.39661721]
[1767437512272,0.00200001,3101.4,3101.0,2.63645911]
[1767437512599,0.000802,3101.7,3101.2,2.39561721]
[1767437512901,0.000802,3101.7,3101.0,0.2408419]
[1767437512902,0.001,3102.1,3101.5,2.39561721]
[1767437513186,0.001,3102.1,3101.7,2.39561721]
[1767437513392,0.001,3102.1,3101.8,3.2800074]
[1767437515374,0.001,3102.1,3101.9,3.22383055]
[1767437517802,2.47469287,3102.1,3101.8,4.10827764]
[1767437518169,2.47469287,3102.1,3101.8,3.22388745]
[1767437519825,2.47469287,3102.1,3101.4,6.44870058]
[1767437522689,2.47469287,3102.1,3101.4,8.88402489]
[1767437524606,2.47469287,3102.1,3101.5,2.43532431]
[1767437525514,0.001,3102.1,3101.5,2.43532431]
[1767437525711,0.001,3102.1,3101.6,0.88840249]
[1767437527715,0.001,3102.1,3101.7,6.44807686]
[1767437528390,0.001,3102.1,3101.7,8.88340117]
[1767437529318,0.001,3102.5,3101.8,2.43612599]
[1767437529691,2.34793989,3102.5,3101.8,2.43612599]
[1767437529891,2.34793989,3102.5,3101.9,3.22383055]
[1767437530299,2.34793989,3102.5,3101.9,6.4476611]
[1767437531810,2.34793989,3102.5,3101.9,3.22383055]
[1767437533808,2.34793989,3102.5,3101.9,6.4476611]
[1767437535513,2.34793989,3102.5,3101.9,3.22383055]
[1767437536013,0.001,3102.5,3102.0,2.43532431]
[1767437536394,0.001,3102.5,3102.1,3.2236227]
[1767437536594,2.34793989,3102.5,3102.1,3.2236227]
[1767437537414,0.001,3102.5,3102.0,2.43532431]
[1767437537792,0.001,3102.5,3101.9,6.4476611]
[1767437538113,2.34793989,3102.5,3101.9,7.33603981]
[1767437539095,2.34793989,3102.5,3101.9,9.77136412]
[1767437543817,2.34793989,3102.5,3101.9,4.11220926]
[1767437544117,2.34693989,3102.4,3101.8,0.00080168]